Workbook

Sheet Jornada
B2: CÁLCULO DA JORNADA SEMANAL COM HORÁRIO MISTO
B3: Empregado:
B4: Departamento:
B5: Dia Inicial: | D5: 2021-08-23
B6: Horário Noturno: | D6: Início: | E6: 22:00:00 | F6: Jornada Diária: | H6: Seg a Sex: | I6: 08:00:00 | J6: <<<< Altere aqui a jornada normal
D7: Término: | E7: 05:00:00 | H7: Sábado: | I7: 04:00:00
N8: NÃO ALTERAR ESTAS FÓRMULAS
B9: Data | C9: Dia da Semana | D9: Jornada | E9: Entrada | F9: Saída Intervalo | G9: Retorno Intervalo | H9: Saída | I9: Horas Trab. | J9: Hor. Not. Ficta | K9: Total | L9: Semana | O9: Acerto | P9: Hor. Not. 1 | Q9: Hor. Not. 2 | R9: Horário Noturno
B10: =D5 -> 2021-08-23 | C10: =B10 -> 2021-08-23 | D10: =$I$6 -> 08:00:00 | E10: 0.75 | F10: 0.875 | G10: 0.9166666667 | H10: =IF(E10="","",(IF(MATCH(INDEX(N$10:N$3010,E10*60*24+1)+D10*60*24,N$10:N$3010,1)-1<(F10+(F10<E10))*60*24,MATCH(INDEX(N$10:N$3010,E10*60*24+1)+D10*60*24,N$10:N$3010,1)-1,MATCH(INDEX(N$10:N$3010,IF(G10="",F10+(E10>F10),G10+OR(E10>F10,F10>G10))*60*24+1)+D10*60*24-(INDEX(N$10:N$3010,(F10+(E10>F10))*24*60+1,1)-INDEX(N$10:N$3010,E10*60*24+1,1)),N$10:N$3010,1)-1))/60/24) -> 1.098611111 | I10: =IF(E10="","",MOD(H10-G10+F10-E10,1)) -> 07:22:00 | J10: =IF(R10="","",IF(R10=0,0,((R10/7*8)-R10))) -> 00:37:25.714 | K10: =IF(E10="","",IF(D10>0,ROUND((I10+J10)*72,0)/72,0)) -> 08:00:00 | L10: =K10 -> 0.3333333333 | M10: 0 | N10: 0.000000 | O10: =IF(H10="","",IF(H10>1,H10-1,H10)) -> 02:22:00 | P10: =IF(E10="",0,MAX(Ini,MIN(Fini+1,F10+(E10>F10)))-MAX(Ini,E10)+(MIN(Fini,F10+(E10>F10))-MIN(Fini,E10))) -> 00:00:00 | Q10: =IF(G10="",0,MAX(Ini,MIN(Fini+1,O10+(G10>O10)))-MAX(Ini,G10)+(MIN(Fini,O10+(G10>O10))-MIN(Fini,G10))) -> 04:22:00 | R10: =IF(E10="","",P10+Q10) -> 04:22:00
B11: =B10+1 -> 2021-08-24 | C11: 2021-08-24 | D11: =$I$6 -> 08:00:00 | E11: 0.75 | F11: 0.875 | G11: 0.9166666667 | H11: =IF(E11="","",(IF(MATCH(INDEX(N$10:N$3010,E11*60*24+1)+D11*60*24,N$10:N$3010,1)-1<(F11+(F11<E11))*60*24,MATCH(INDEX(N$10:N$3010,E11*60*24+1)+D11*60*24,N$10:N$3010,1)-1,MATCH(INDEX(N$10:N$3010,IF(G11="",F11+(E11>F11),G11+OR(E11>F11,F11>G11))*60*24+1)+D11*60*24-(INDEX(N$10:N$3010,(F11+(E11>F11))*24*60+1,1)-INDEX(N$10:N$3010,E11*60*24+1,1)),N$10:N$3010,1)-1))/60/24) -> 1.098611111 | I11: =IF(E11="","",MOD(H11-G11+F11-E11,1)) -> 07:22:00 | J11: 00:37:25.714 | K11: 08:00:00 | L11: =IF(ISERR(L10+K11),"",L10+K11) -> 0.6666666667 | M11: 1 | N11: =IF(M11<=Fini*60*24,N10+1/7*8,IF(M11<=Ini*60*24,N10+1,IF(M11<=Fini*60*24+60*24,N10+1/7*8,IF(M11<=Ini*60*24+60*24,N10+1,N10+1/7*8)))) -> 1.142857 | O11: =IF(H11="","",IF(H11>1,H11-1,H11)) -> 02:22:00 | P11: 00:00:00 | Q11: 04:22:00 | R11: =IF(E11="","",P11+Q11) -> 04:22:00
B12: 2021-08-25 | C12: 2021-08-25 | D12: =$I$6 -> 08:00:00 | E12: 0.75 | F12: 0.875 | G12: 0.9166666667 | H12: 1.098611111 | I12: 07:22:00 | J12: 00:37:25.714 | K12: 08:00:00 | L12: 1 | M12: 2 | N12: 2.285714 | O12: 02:22:00 | P12: 00:00:00 | Q12: 04:22:00 | R12: 04:22:00
B13: 2021-08-26 | C13: 2021-08-26 | D13: =$I$6 -> 08:00:00 | E13: 0.6666666667 | F13: 0.875 | G13: 0.9166666667 | H13: 1.025694444 | I13: 07:37:00 | J13: 00:22:25.714 | K13: 08:00:00 | L13: 1.333333333 | M13: 3 | N13: 3.428571 | O13: 00:37:00 | P13: 00:00:00 | Q13: 02:37:00 | R13: 02:37:00
B14: 2021-08-27 | C14: 2021-08-27 | D14: =$I$6 -> 08:00:00 | E14: 0.75 | F14: 0.875 | G14: 0.9166666667 | H14: 1.098611111 | I14: 07:22:00 | J14: 00:37:25.714 | K14: 08:00:00 | L14: 1.666666667 | M14: 4 | N14: 4.571429 | O14: 02:22:00 | P14: 00:00:00 | Q14: 04:22:00 | R14: 04:22:00
B15: 2021-08-28 | C15: 2021-08-28 | D15: =I7 -> 04:00:00 | E15: 0.75 | F15: 0.9166666667 | G15: 0.9166666667 | H15: 22:00:00 | I15: 04:00:00 | J15: 00:00:00 | K15: 04:00:00 | L15: 1.833333333 | M15: 5 | N15: 5.714286 | O15: 22:00:00 | P15: 00:00:00 | Q15: 00:00:00 | R15: 00:00:00
B16: 2021-08-29 | C16: 2021-08-29 | D16: 00:00:00 | M16: 6 | N16: 6.857143 | P16: 00:00:00 | Q16: 00:00:00
M17: 7 | N17: 8.000000
M18: 8 | N18: 9.142857
M19: 9 | N19: 10.285714
M20: 10 | N20: 11.428571
M21: 11 | N21: 12.571429
M22: 12 | N22: 13.714286
M23: 13 | N23: 14.857143
M24: 14 | N24: 16.000000
M25: 15 | N25: 17.142857
M26: 16 | N26: 18.285714
M27: 17 | N27: 19.428571
M28: 18 | N28: 20.571429
M29: 19 | N29: 21.714286
M30: 20 | N30: 22.857143
M31: 21 | N31: 24.000000
M32: 22 | N32: 25.142857
M33: 23 | N33: 26.285714
M34: 24 | N34: 27.428571
M35: 25 | N35: 28.571429
M36: 26 | N36: 29.714286
M37: 27 | N37: 30.857143
M38: 28 | N38: 32.000000
M39: 29 | N39: 33.142857
M40: 30 | N40: 34.285714
M41: 31 | N41: 35.428571
M42: 32 | N42: 36.571429
M43: 33 | N43: 37.714286
M44: 34 | N44: 38.857143
M45: 35 | N45: 40.000000
M46: 36 | N46: 41.142857
M47: 37 | N47: 42.285714
M48: 38 | N48: 43.428571
M49: 39 | N49: 44.571429
M50: 40 | N50: 45.714286
M51: 41 | N51: 46.857143
M52: 42 | N52: 48.000000
M53: 43 | N53: 49.142857
M54: 44 | N54: 50.285714
M55: 45 | N55: 51.428571
M56: 46 | N56: 52.571429
M57: 47 | N57: 53.714286
M58: 48 | N58: 54.857143
M59: 49 | N59: 56.000000
M60: 50 | N60: 57.142857
M61: 51 | N61: 58.285714
M62: 52 | N62: 59.428571
M63: 53 | N63: 60.571429
M64: 54 | N64: 61.714286
M65: 55 | N65: 62.857143
M66: 56 | N66: 64.000000
M67: 57 | N67: 65.142857
M68: 58 | N68: 66.285714
M69: 59 | N69: 67.428571
M70: 60 | N70: 68.571429
M71: 61 | N71: 69.714286
M72: 62 | N72: 70.857143
M73: 63 | N73: 72.000000
M74: 64 | N74: 73.142857
M75: 65 | N75: =IF(M75<=Fini*60*24,N74+1/7*8,IF(M75<=Ini*60*24,N74+1,IF(M75<=Fini*60*24+60*24,N74+1/7*8,IF(M75<=Ini*60*24+60*24,N74+1,N74+1/7*8)))) -> 74.285714
M76: 66 | N76: 75.428571
M77: 67 | N77: 76.571429
M78: 68 | N78: 77.714286
M79: 69 | N79: 78.857143
M80: 70 | N80: 80.000000
M81: 71 | N81: 81.142857
M82: 72 | N82: 82.285714
M83: 73 | N83: 83.428571
M84: 74 | N84: 84.571429
M85: 75 | N85: 85.714286
M86: 76 | N86: 86.857143
M87: 77 | N87: 88.000000
M88: 78 | N88: 89.142857
M89: 79 | N89: 90.285714
M90: 80 | N90: 91.428571
M91: 81 | N91: 92.571429
M92: 82 | N92: 93.714286
M93: 83 | N93: 94.857143
M94: 84 | N94: 96.000000
M95: 85 | N95: 97.142857
M96: 86 | N96: 98.285714
M97: 87 | N97: 99.428571
M98: 88 | N98: 100.571429
M99: 89 | N99: 101.714286
M100: 90 | N100: 102.857143
M101: 91 | N101: 104.000000
M102: 92 | N102: 105.142857
M103: 93 | N103: 106.285714
M104: 94 | N104: 107.428571
M105: 95 | N105: 108.571429
M106: 96 | N106: 109.714286
M107: 97 | N107: 110.857143
M108: 98 | N108: 112.000000
M109: 99 | N109: 113.142857
M110: 100 | N110: 114.285714
M111: 101 | N111: 115.428571
M112: 102 | N112: 116.571429
M113: 103 | N113: 117.714286
M114: 104 | N114: 118.857143
M115: 105 | N115: 120.000000
M116: 106 | N116: 121.142857
M117: 107 | N117: 122.285714
M118: 108 | N118: 123.428571
M119: 109 | N119: 124.571429
M120: 110 | N120: 125.714286
M121: 111 | N121: 126.857143
M122: 112 | N122: 128.000000
M123: 113 | N123: 129.142857
M124: 114 | N124: 130.285714
M125: 115 | N125: 131.428571
M126: 116 | N126: 132.571429
M127: 117 | N127: 133.714286
M128: 118 | N128: 134.857143
M129: 119 | N129: 136.000000
M130: 120 | N130: 137.142857
M131: 121 | N131: 138.285714
M132: 122 | N132: 139.428571
M133: 123 | N133: 140.571429
M134: 124 | N134: 141.714286
M135: 125 | N135: 142.857143
M136: 126 | N136: 144.000000
M137: 127 | N137: 145.142857
M138: 128 | N138: 146.285714
M139: 129 | N139: =IF(M139<=Fini*60*24,N138+1/7*8,IF(M139<=Ini*60*24,N138+1,IF(M139<=Fini*60*24+60*24,N138+1/7*8,IF(M139<=Ini*60*24+60*24,N138+1,N138+1/7*8)))) -> 147.428571
M140: 130 | N140: 148.571429
M141: 131 | N141: 149.714286
M142: 132 | N142: 150.857143
M143: 133 | N143: 152.000000
M144: 134 | N144: 153.142857
M145: 135 | N145: 154.285714
M146: 136 | N146: 155.428571
M147: 137 | N147: 156.571429
M148: 138 | N148: 157.714286
M149: 139 | N149: 158.857143
M150: 140 | N150: 160.000000
M151: 141 | N151: 161.142857
M152: 142 | N152: 162.285714
M153: 143 | N153: 163.428571
M154: 144 | N154: 164.571429
M155: 145 | N155: 165.714286
M156: 146 | N156: 166.857143
M157: 147 | N157: 168.000000
M158: 148 | N158: 169.142857
M159: 149 | N159: 170.285714
M160: 150 | N160: 171.428571
M161: 151 | N161: 172.571429
M162: 152 | N162: 173.714286
M163: 153 | N163: 174.857143
M164: 154 | N164: 176.000000
M165: 155 | N165: 177.142857
M166: 156 | N166: 178.285714
M167: 157 | N167: 179.428571
M168: 158 | N168: 180.571429
M169: 159 | N169: 181.714286
M170: 160 | N170: 182.857143
M171: 161 | N171: 184.000000
M172: 162 | N172: 185.142857
M173: 163 | N173: 186.285714
M174: 164 | N174: 187.428571
M175: 165 | N175: 188.571429
M176: 166 | N176: 189.714286
M177: 167 | N177: 190.857143
M178: 168 | N178: 192.000000
M179: 169 | N179: 193.142857
M180: 170 | N180: 194.285714
M181: 171 | N181: 195.428571
M182: 172 | N182: 196.571429
M183: 173 | N183: 197.714286
M184: 174 | N184: 198.857143
M185: 175 | N185: 200.000000
M186: 176 | N186: 201.142857
M187: 177 | N187: 202.285714
M188: 178 | N188: 203.428571
M189: 179 | N189: 204.571429
M190: 180 | N190: 205.714286
M191: 181 | N191: 206.857143
M192: 182 | N192: 208.000000
M193: 183 | N193: 209.142857
M194: 184 | N194: 210.285714
M195: 185 | N195: 211.428571
M196: 186 | N196: 212.571429
M197: 187 | N197: 213.714286
M198: 188 | N198: 214.857143
M199: 189 | N199: 216.000000
M200: 190 | N200: 217.142857
M201: 191 | N201: 218.285714
... 2809 more rows
